[Event "22nd ETCC Women 2019"]
[Site "Batumi"]
[Date "2019.10.25"]
[Round "2.9"]
[White "Gaponenko, Inna"]
[Black "Brunello, Marina"]
[Result "0-1"]
[ECO "B90"]
[WhiteElo "2427"]
[BlackElo "2381"]
[Annotator "NA"]
[PlyCount "56"]
[EventDate "2019.10.24"]
[EventType "team-tourn"]
[EventCountry "GEO"]
[SourceTitle "playchess.com"]
[Source "ChessBase"]
[SourceQuality "1"]
[WhiteTeam "Ukraine"]
[BlackTeam "Italy"]
[WhiteTeamCountry "UKR"]
[BlackTeamCountry "ITA"]
[TimeControl "40/5400+30:1800+30"]

1. e4 {[%emt 0:00:00]} c5 {[%emt 0:00:00]} 2. Nf3 {[%emt 0:00:00]} d6 {[%emt 0:00:04]} 3. d4 {[%emt 0:00:00]} cxd4 {[%emt 0:00:15]} 4. Nxd4 {[%emt 0:00:00]} Nf6 {[%emt 0:00:08]} 5. Nc3 {[%emt 0:00:00]} a6 {[%emt 0:00:06]} 6. a4 {[%emt 0:00:16]} e5 {[%emt 0:05:53]} 7. Nf3 {[%emt 0:00:25]} Qc7 {[%emt 0:01:05]} 8. Bg5 {[%emt 0:30:20]} Nbd7 {[%emt 0:16:24]} 9. Nd2 {[%emt 0:00:22]} h6 {[%emt 0:05:45]} 10. Bh4 {[%emt 0:22:08]} Qc6 {[%emt 0:10:16]} 11. Bc4 {[%emt 0:10:37]} Be7 {[%emt 0:05:06]} 12. O-O {[%emt 0:11:20]} O-O {[%emt 0:07:10]} 13. Ba2 {[%emt 0:05:26]} Nc5 {[%emt 0:07:43]} 14. b4 {[%emt 0:06:24]} Ncd7 {[%emt 0:01:40]} 15. Nd5 {[%emt 0:03:21]} Bd8 {[%emt 0:01:49]} 16. b5 {[%emt 0:02:13]} Qc5 {[%emt 0:00:23]} 17. Ne3 {[%emt 0:04:18]} axb5 {[%emt 0:04:38]} 18. axb5 {[%emt 0:00:28]} Nb6 {[%emt 0:00:08]} 19. Ndc4 {[%emt 0:01:07]} Rxa2 {[%emt 0:02:08]} 20. Rxa2 {[%emt 0:00:38]} Nxc4 {[%emt 0:00:10]} 21. Bxf6 {[%emt 0:00:28]} Nxe3 {[%emt 0:02:12]} 22. fxe3 {[%emt 0:00:03]} Qxe3+ {[%emt 0:00:10]} 23. Kh1 {[%emt 0:00:23]} Bxf6 {[%emt 0:00:05]} 24. Qxd6 {[%emt 0:01:07]} Be6 {[%emt 0:01:37]} 25. Ra4 {[%emt 0:00:31]} Rd8 {[%emt 0:02:53]} 26. Qc7 {[%emt 0:00:14]} Rd2 {[%emt 0:00:29]} 27. Qxb7 {[%emt 0:00:49]} Qe2 {[%emt 0:00:42]} 28. Rg1 {[%emt 0:00:11]} Bh3 {[%emt 0:00:27]} 0-1

[Event "22nd ETCC Women 2019"]
[Site "Batumi"]
[Date "2019.10.25"]
[Round "2.9"]
[White "Georgescu, Lena"]
[Black "Hoolt, Sarah"]
[Result "0-1"]
[ECO "C12"]
[WhiteElo "2271"]
[BlackElo "2323"]
[Annotator "NA"]
[PlyCount "110"]
[EventDate "2019.10.24"]
[EventType "team-tourn"]
[EventCountry "GEO"]
[SourceTitle "playchess.com"]
[Source "ChessBase"]
[SourceQuality "1"]
[WhiteTeam "Switzerland"]
[BlackTeam "Germany"]
[WhiteTeamCountry "SUI"]
[TimeControl "40/5400+30:1800+30"]

1. e4 {[%emt 0:00:00]} e6 {[%emt 0:00:00]} 2. d4 {[%emt 0:00:00]} d5 {[%emt 0:00:00]} 3. Nc3 {[%emt 0:00:00]} Nf6 {[%emt 0:00:00]} 4. Bg5 {[%emt 0:00:00]} Bb4 {[%emt 0:00:22]} 5. e5 {[%emt 0:00:00]} h6 {[%emt 0:00:09]} 6. Bc1 $11 {[%emt 0:00:05]} Ne4 {[%emt 0:00:18]} 7. Qg4 {[%emt 0:00:17]} Kf8 {[%emt 0:00:15]} 8. Nge2 {[%emt 0:01:02]} c5 {[%emt 0:00:29]} 9. a3 {[%emt 0:01:03]} h5 {[%emt 0:00:18]} 10. Qf4 {[%emt 0:12:51]} Ba5 {[%emt 0:00:54]} 11. b4 {[%emt 0:17:55]} Nxc3 {[%emt 0:00:57]} 12. Nxc3 {[%emt 0:07:02]} cxb4 {[%emt 0:00:43]} 13. Nb5 {[%emt 0:05:42]} Nc6 {[%emt 0:20:54]} 14. axb4 {[%emt 0:10:33]} Nxb4 {[%emt 0:07:16]} 15. Kd1 {[%emt 0:00:36]} Nc6 {[%emt 0:07:36]} 16. Bd3 {[%emt 0:07:33]} Kg8 {[%emt 0:04:23]} 17. h4 {[%emt 0:01:42]} a6 {[%emt 0:08:41]} 18. Nd6 {[%emt 0:01:01]} f5 {[%emt 0:01:56]} 19. Rh3 {[%emt 0:08:29]} b5 {[%emt 0:05:07]} 20. Rg3 {[%emt 0:01:28]} Ra7 {[%emt 0:01:55]} 21. Be2 {[%emt 0:03:12]} Bd7 {[%emt 0:13:12]} 22. Bb2 {[%emt 0:06:49]} Be8 {[%emt 0:02:55]} 23. Rg5 {[%emt 0:01:10]} Bc7 {[%emt 0:04:39]} 24. Nxe8 {[%emt 0:02:33]} Qxe8 {[%emt 0:00:14]} 25. Ra3 {[%emt 0:00:08]} Bd8 {[%emt 0:01:56]} 26. Rgg3 {[%emt 0:01:21]} Na5 {[%emt 0:03:01]} 27. Bc3 {[%emt 0:03:49]} Nc4 {[%emt 0:01:11]} 28. Bxc4 {[%emt 0:03:28]} bxc4 {[%emt 0:03:17]} 29. Kd2 {[%emt 0:02:43]} Qe7 {[%emt 0:02:42]} 30. Ra1 {[%emt 0:01:29]} Qxh4 {[%emt 0:00:43]} 31. Qf3 {[%emt 0:00:15]} Qe7 {[%emt 0:04:36]} 32. Rb1 {[%emt 0:00:26]} Rb7 {[%emt 0:00:38]} 33. Ra1 {[%emt 0:00:57]} h4 {[%emt 0:01:02]} 34. Rh3 {[%emt 0:00:13]} Ra7 {[%emt 0:00:59]} 35. Rb1 {[%emt 0:00:06]} Qd7 {[%emt 0:00:42]} 36. Rhh1 {[%emt 0:00:44]} Rb7 {[%emt 0:00:47]} 37. Ra1 {[%emt 0:00:22]} Qc6 {[%emt 0:00:33]} 38. g3 {[%emt 0:00:49]} h3 {[%emt 0:02:18]} 39. g4 {[%emt 0:00:27]} Rf7 {[%emt 0:00:46]} 40. Rxh3 {[%emt 0:00:00]} Rxh3 {[%emt 0:00:00]} 41. Qxh3 {[%emt 0:01:07]} fxg4 {[%emt 0:00:31]} 42. Qh2 {[%emt 0:02:35]} Rf3 {[%emt 0:05:29]} 43. Rb1 {[%emt 0:04:03]} Bg5+ {[%emt 0:03:59]} 44. Kd1 {[%emt 0:01:15]} Rh3 {[%emt 0:00:23]} 45. Qg2 {[%emt 0:01:05]} Qe8 {[%emt 0:03:43]} 46. Qxg4 {[%emt 0:01:44]} Rh1+ {[%emt 0:01:59]} 47. Be1 {[%emt 0:00:15]} Qg6 {[%emt 0:03:26]} 48. Qf3 {[%emt 0:08:28]} Rh4 {[%emt 0:00:37]} 49. Rb8+ {[%emt 0:02:37]} Kh7 {[%emt 0:00:08]} 50. Bc3 {[%emt 0:01:19]} Rf4 {[%emt 0:01:06]} 51. Qh1+ {[%emt 0:06:13]} Bh6 {[%emt 0:00:11]} 52. f3 {[%emt 0:01:33]} Qf5 {[%emt 0:01:15]} 53. Rb7 {[%emt 0:03:54]} Rxf3 {[%emt 0:00:36]} 54. Be1 {[%emt 0:00:48]} Ra3 {[%emt 0:00:59]} 55. Rb1 {[%emt 0:01:36]} Qg4+ {[%emt 0:00:09]} 0-1

[Event "22nd ETCC Women 2019"]
[Site "Batumi"]
[Date "2019.10.25"]
[Round "2.10"]
[White "Zimina, Olga"]
[Black "Buksa, Nataliya"]
[Result "1/2-1/2"]
[ECO "A06"]
[WhiteElo "2397"]
[BlackElo "2410"]
[Annotator "NA"]
[PlyCount "110"]
[EventDate "2019.10.24"]
[EventType "team-tourn"]
[EventCountry "GEO"]
[SourceTitle "playchess.com"]
[Source "ChessBase"]
[SourceQuality "1"]
[WhiteTeam "Italy"]
[BlackTeam "Ukraine"]
[WhiteTeamCountry "ITA"]
[BlackTeamCountry "UKR"]
[TimeControl "40/5400+30:1800+30"]

1. Nf3 {[%emt 0:00:00]} d5 {[%emt 0:00:00]} 2. g3 {[%emt 0:00:15]} g6 {[%emt 0:01:41]} 3. d4 {[%emt 0:00:44]} Nf6 {[%emt 0:00:15]} 4. c4 {[%emt 0:00:13]} c6 {[%emt 0:00:03]} 5. Qa4 {[%emt 0:00:06]} dxc4 {[%emt 0:09:00]} 6. Qxc4 {[%emt 0:00:11]} Be6 {[%emt 0:00:06]} 7. Qa4 {[%emt 0:01:55]} Bg7 {[%emt 0:00:04]} 8. Bg2 {[%emt 0:00:27]} O-O {[%emt 0:00:04]} 9. O-O {[%emt 0:01:06]} Bf5 {[%emt 0:23:18]} 10. Nc3 {[%emt 0:03:24]} Nbd7 {[%emt 0:01:34]} 11. Re1 {[%emt 0:11:13]} Ne4 {[%emt 0:02:33]} 12. Nh4 {[%emt 0:02:00]} Nxc3 {[%emt 0:08:45]} 13. bxc3 {[%emt 0:01:08]} Nb6 {[%emt 0:00:03]} 14. Qd1 {[%emt 0:01:42]} Bc8 {[%emt 0:00:15]} 15. Nf3 {[%emt 0:10:54]} c5 {[%emt 0:04:15]} 16. h3 {[%emt 0:04:09]} Nd5 {[%emt 0:12:05]} 17. Qd3 {[%emt 0:11:50]} cxd4 {[%emt 0:00:23]} 18. cxd4 {[%emt 0:00:13]} Nb4 {[%emt 0:02:26]} 19. Qb3 {[%emt 0:04:51]} a5 {[%emt 0:00:31]} 20. Bd2 {[%emt 0:07:36]} Be6 {[%emt 0:04:51]} 21. Qb2 {[%emt 0:00:55]} Qd7 {[%emt 0:00:17]} 22. a3 {[%emt 0:06:46]} Nc6 {[%emt 0:01:49]} 23. Bc3 {[%emt 0:03:13]} Rab8 {[%emt 0:09:02]} 24. e4 Bxh3 25. Bxh3 {[%emt 0:05:23]} Qxh3 {[%emt 0:01:52]} 26. d5 {[%emt 0:00:05]} Bxc3 {[%emt 0:01:26]} 27. Qxc3 {[%emt 0:00:02]} Nd8 {[%emt 0:00:05]} 28. Qe5 {[%emt 0:04:32]} Rc8 {[%emt 0:08:47]} 29. Qxe7 {[%emt 0:00:50]} f6 {[%emt 0:03:23]} 30. Rac1 {[%emt 0:02:10]} Nf7 {[%emt 0:05:01]} 31. Qxf6 {[%emt 0:05:08]} Qd7 {[%emt 0:00:59]} 32. Nd4 {[%emt 0:01:00]} Nd8 {[%emt 0:00:25]} 33. Qg5 {[%emt 0:01:51]} Rxc1 {[%emt 0:00:39]} 34. Qxc1 {[%emt 0:01:30]} Nf7 {[%emt 0:00:20]} 35. Ne6 {[%emt 0:00:19]} Rc8 {[%emt 0:00:08]} 36. Qb2 {[%emt 0:00:05]} Nd6 {[%emt 0:00:04]} 37. Qf6 {[%emt 0:01:54]} b5 {[%emt 0:00:26]} 38. Re3 {[%emt 0:03:20]} Qf7 {[%emt 0:01:09]} 39. Qd4 {[%emt 0:01:10]} Rc1+ {[%emt 0:00:54]} 40. Kg2 {[%emt 0:00:00]} Rc8 {[%emt 0:00:00]} 41. Rf3 {[%emt 0:03:48]} Qe7 {[%emt 0:00:56]} 42. g4 {[%emt 0:06:51]} b4 {[%emt 0:03:25]} 43. axb4 {[%emt 0:00:52]} a4 {[%emt 0:00:37]} 44. b5 {[%emt 0:06:24]} a3 {[%emt 0:02:32]} 45. Qb4 {[%emt 0:04:45]} a2 {[%emt 0:04:33]} 46. Ra3 {[%emt 0:00:40]} Qh4 {[%emt 0:03:57]} 47. Qxd6 {[%emt 0:07:29]} Qxg4+ {[%emt 0:00:03]} 48. Kh2 {[%emt 0:01:52]} Qh4+ {[%emt 0:00:03]} 49. Kg2 {[%emt 0:00:07]} Qg4+ {[%emt 0:00:04]} 50. Kh2 {[%emt 0:00:58]} Qh4+ {[%emt 0:05:31]} 51. Kg2 {[%emt 0:00:14]} Qxe4+ {[%emt 0:07:35]} 52. Kh2 {[%emt 0:00:19]} Qh4+ {[%emt 0:07:00]} 53. Kg2 {[%emt 0:00:40]} Qe4+ {[%emt 0:00:04]} 54. Kh2 {[%emt 0:00:03]} Qh4+ {[%emt 0:01:02]} 55. Kg2 {[%emt 0:00:06]} Qe4+ {[%emt 0:00:26]} 1/2-1/2

[Event "22nd ETCC Women 2019"]
[Site "Batumi"]
[Date "2019.10.25"]
[Round "2.10"]
[White "Sieber, Fiona"]
[Black "Heinatz, Gundula"]
[Result "1-0"]
[ECO "B36"]
[WhiteElo "2252"]
[BlackElo "2175"]
[Annotator "NA"]
[PlyCount "101"]
[EventDate "2019.10.24"]
[EventType "team-tourn"]
[EventCountry "GEO"]
[SourceTitle "playchess.com"]
[Source "ChessBase"]
[SourceQuality "1"]
[WhiteTeam "Germany"]
[BlackTeam "Switzerland"]
[WhiteTeamCountry "GER"]
[BlackTeamCountry "SUI"]
[TimeControl "40/5400+30:1800+30"]

1. e4 {[%emt 0:00:00]} c5 {[%emt 0:00:00]} 2. Nf3 {[%emt 0:00:00]} Nc6 {[%emt 0:00:00]} 3. d4 {[%emt 0:00:00]} cxd4 {[%emt 0:00:00]} 4. Nxd4 {[%emt 0:00:00]} g6 {[%emt 0:00:00]} 5. c4 {[%emt 0:00:18]} Nf6 {[%emt 0:00:03]} 6. Nc3 {[%emt 0:00:16]} Nxd4 {[%emt 0:00:11]} 7. Qxd4 {[%emt 0:00:06]} d6 {[%emt 0:00:03]} 8. Bg5 {[%emt 0:00:34]} Bg7 {[%emt 0:00:29]} 9. Qd2 {[%emt 0:00:19]} O-O {[%emt 0:00:20]} 10. Bd3 {[%emt 0:00:29]} Be6 {[%emt 0:02:18]} 11. O-O {[%emt 0:02:49]} Rc8 {[%emt 0:06:57]} 12. b3 {[%emt 0:00:55]} a6 {[%emt 0:04:12]} 13. Rac1 {[%emt 0:02:05]} Re8 {[%emt 0:01:00]} 14. Kh1 {[%emt 0:06:22]} Qa5 {[%emt 0:03:52]} 15. Rfe1 {[%emt 0:20:56]} Ng4 {[%emt 0:13:31]} 16. Nd1 {[%emt 0:06:25]} Qxd2 {[%emt 0:02:02]} 17. Bxd2 {[%emt 0:00:02]} Bd4 {[%emt 0:04:23]} 18. Kg1 {[%emt 0:03:32]} Ne5 {[%emt 0:07:04]} 19. Bf1 {[%emt 0:02:01]} Bd7 {[%emt 0:07:06]} 20. Nc3 {[%emt 0:07:45]} Ng4 {[%emt 0:02:54]} 21. Nd1 {[%emt 0:04:12]} b5 {[%emt 0:03:27]} 22. Bc3 {[%emt 0:03:14]} Bb6 {[%emt 0:05:22]} 23. h3 {[%emt 0:01:12]} Ne5 {[%emt 0:05:23]} 24. Ne3 {[%emt 0:03:32]} e6 {[%emt 0:04:42]} 25. Bxe5 {[%emt 0:05:05]} dxe5 {[%emt 0:00:08]} 26. Ng4 {[%emt 0:00:18]} Kg7 {[%emt 0:02:32]} 27. Nxe5 {[%emt 0:00:25]} Red8 {[%emt 0:01:23]} 28. Red1 {[%emt 0:04:27]} Be8 {[%emt 0:02:32]} 29. Rxd8 {[%emt 0:01:16]} Bxd8 {[%emt 0:01:43]} 30. c5 {[%emt 0:03:07]} f6 {[%emt 0:03:59]} 31. Nd3 {[%emt 0:04:20]} a5 {[%emt 0:00:57]} 32. a3 {[%emt 0:01:41]} Bc6 {[%emt 0:04:44]} 33. f3 {[%emt 0:00:39]} Bc7 {[%emt 0:00:36]} 34. Kf2 {[%emt 0:01:22]} g5 {[%emt 0:00:51]} 35. g3 {[%emt 0:04:09]} h5 {[%emt 0:00:23]} 36. h4 {[%emt 0:02:13]} gxh4 {[%emt 0:03:05]} 37. gxh4 {[%emt 0:00:06]} Kf7 {[%emt 0:00:07]} 38. Bh3 {[%emt 0:07:44]} Rd8 {[%emt 0:03:05]} 39. Ke3 {[%emt 0:01:21]} Bg3 {[%emt 0:02:26]} 40. Rh1 {[%emt 0:00:00]} Rg8 {[%emt 0:00:00]} 41. Nf4 {[%emt 0:07:07]} f5 {[%emt 0:10:42]} 42. exf5 {[%emt 0:07:36]} e5 {[%emt 0:19:56]} 43. Ng6 {[%emt 0:00:29]} Bd5 {[%emt 0:03:51]} 44. Rd1 {[%emt 0:05:04]} Bc6 {[%emt 0:01:13]} 45. Rd6 {[%emt 0:01:15]} Rc8 {[%emt 0:01:05]} 46. f6 {[%emt 0:01:49]} Rb8 {[%emt 0:01:21]} 47. Ne7 {[%emt 0:03:17]} Be8 {[%emt 0:00:31]} 48. Nf5 {[%emt 0:02:23]} Bf4+ {[%emt 0:00:17]} 49. Ke4 {[%emt 0:00:42]} b4 {[%emt 0:00:48]} 50. a4 {[%emt 0:00:01]} Kf8 {[%emt 0:00:37]} 51. c6 {[%emt 0:00:53]} 1-0

[Event "22nd ETCC Women 2019"]
[Site "Batumi"]
[Date "2019.10.25"]
[Round "2.11"]
[White "Osmak, Iulija"]
[Black "Gueci, Tea"]
[Result "1-0"]
[ECO "A45"]
[WhiteElo "2409"]
[BlackElo "2265"]
[Annotator "NA"]
[PlyCount "71"]
[EventDate "2019.10.24"]
[EventType "team-tourn"]
[EventCountry "GEO"]
[SourceTitle "playchess.com"]
[Source "ChessBase"]
[SourceQuality "1"]
[WhiteTeam "Ukraine"]
[BlackTeam "Italy"]
[WhiteTeamCountry "UKR"]
[BlackTeamCountry "ITA"]
[TimeControl "40/5400+30:1800+30"]

1. d4 {[%emt 0:00:00]} Nf6 {[%emt 0:00:00]} 2. Bg5 {[%emt 0:00:00]} c5 {[%emt 0:00:00]} 3. d5 {[%emt 0:00:00]} Ne4 {[%emt 0:00:04]} 4. Bf4 {[%emt 0:00:05]} Qb6 {[%emt 0:00:15]} 5. Bc1 {[%emt 0:00:26]} g6 {[%emt 0:00:23]} 6. f3 {[%emt 0:00:13]} Nd6 $14 {[%emt 0:00:12]} 7. e4 {[%emt 0:00:26]} Bg7 {[%emt 0:00:18]} 8. c3 {[%emt 0:00:45]} f5 {[%emt 0:02:08]} 9. Nd2 {[%emt 0:00:21]} O-O {[%emt 0:01:07]} 10. h4 {[%emt 0:01:14]} e6 {[%emt 0:08:54]} 11. Nc4 {[%emt 0:08:03]} Nxc4 {[%emt 0:05:31]} 12. Bxc4 {[%emt 0:00:05]} Qd6 {[%emt 0:00:52]} 13. Qd3 {[%emt 0:13:40]} Na6 {[%emt 0:17:43]} 14. Ne2 {[%emt 0:06:41]} Nc7 {[%emt 0:05:07]} 15. Bf4 {[%emt 0:07:03]} e5 {[%emt 0:02:39]} 16. Be3 {[%emt 0:00:35]} a6 {[%emt 0:04:59]} 17. b4 {[%emt 0:10:11]} cxb4 {[%emt 0:03:22]} 18. cxb4 {[%emt 0:00:09]} Qxb4+ {[%emt 0:05:40]} 19. Bd2 {[%emt 0:11:35]} Qd6 {[%emt 0:01:10]} 20. a3 {[%emt 0:00:37]} b5 {[%emt 0:09:49]} 21. Ba2 {[%emt 0:00:17]} a5 {[%emt 0:02:11]} 22. Rc1 {[%emt 0:02:21]} fxe4 {[%emt 0:05:10]} 23. fxe4 {[%emt 0:01:52]} Ne8 {[%emt 0:03:06]} 24. Be3 {[%emt 0:06:52]} Qf6 {[%emt 0:07:45]} 25. d6+ {[%emt 0:09:13]} Kh8 {[%emt 0:01:24]} 26. Bd5 {[%emt 0:01:16]} Rb8 {[%emt 0:05:50]} 27. h5 {[%emt 0:00:12]} gxh5 {[%emt 0:03:41]} 28. Ng3 {[%emt 0:08:28]} Bb7 {[%emt 0:03:30]} 29. Bxb7 {[%emt 0:05:29]} Rxb7 {[%emt 0:00:06]} 30. Nf5 {[%emt 0:00:07]} Qg6 {[%emt 0:00:46]} 31. O-O {[%emt 0:00:42]} Nf6 {[%emt 0:00:52]} 32. Rc5 {[%emt 0:01:35]} Ng4 {[%emt 0:00:35]} 33. Rc7 {[%emt 0:00:34]} Rxc7 {[%emt 0:00:27]} 34. dxc7 {[%emt 0:00:06]} Qc6 {[%emt 0:00:29]} 35. Rc1 {[%emt 0:00:31]} Qa6 {[%emt 0:00:47]} 36. Qxd7 {[%emt 0:00:45]} 1-0

[Event "22nd ETCC Women 2019"]
[Site "Batumi"]
[Date "2019.10.25"]
[Round "2.11"]
[White "De Seroux, Camille"]
[Black "Klek, Hanna Marie"]
[Result "1/2-1/2"]
[ECO "B11"]
[WhiteElo "2140"]
[BlackElo "2248"]
[Annotator "NA"]
[PlyCount "101"]
[EventDate "2019.10.24"]
[EventType "team-tourn"]
[EventCountry "GEO"]
[SourceTitle "playchess.com"]
[Source "ChessBase"]
[SourceQuality "1"]
[WhiteTeam "Switzerland"]
[BlackTeam "Germany"]
[WhiteTeamCountry "SUI"]
[BlackTeamCountry "GER"]
[TimeControl "40/5400+30:1800+30"]

1. e4 {[%emt 0:00:00]} c6 {[%emt 0:00:00]} 2. Nc3 {[%emt 0:01:51]} d5 {[%emt 0:00:00]} 3. Nf3 {[%emt 0:00:05]} Bg4 {[%emt 0:00:00]} 4. h3 {[%emt 0:01:11]} Bxf3 {[%emt 0:00:00]} 5. Qxf3 {[%emt 0:00:11]} e6 {[%emt 0:00:00]} 6. a3 {[%emt 0:03:20]} Nf6 {[%emt 0:04:59]} 7. d3 {[%emt 0:00:32]} d4 {[%emt 0:02:03]} 8. Nb1 {[%emt 0:01:59]} Qa5+ {[%emt 0:06:33]} 9. Nd2 {[%emt 0:03:04]} c5 {[%emt 0:07:40]} 10. Be2 {[%emt 0:10:59]} Nc6 {[%emt 0:02:27]} 11. O-O {[%emt 0:01:51]} Be7 {[%emt 0:07:56]} 12. Qg3 {[%emt 0:02:46]} O-O {[%emt 0:00:16]} 13. f4 {[%emt 0:11:47]} Qc7 {[%emt 0:01:55]} 14. Qf2 {[%emt 0:07:17]} b5 {[%emt 0:01:22]} 15. Kh1 {[%emt 0:01:49]} Rac8 {[%emt 0:06:44]} 16. c4 {[%emt 0:09:17]} dxc3 {[%emt 0:02:33]} 17. bxc3 {[%emt 0:00:07]} Rfd8 {[%emt 0:05:34]} 18. Bb2 {[%emt 0:05:44]} a6 {[%emt 0:04:39]} 19. d4 {[%emt 0:05:03]} Na5 {[%emt 0:01:23]} 20. Bd3 {[%emt 0:03:20]} Nd7 {[%emt 0:03:23]} 21. Rae1 {[%emt 0:09:24]} f6 {[%emt 0:07:47]} 22. e5 {[%emt 0:02:18]} f5 {[%emt 0:00:09]} 23. d5 {[%emt 0:00:38]} Nf8 {[%emt 0:00:19]} 24. c4 {[%emt 0:07:28]} bxc4 {[%emt 0:13:11]} 25. d6 {[%emt 0:00:23]} Bxd6 {[%emt 0:00:51]} 26. exd6 {[%emt 0:00:12]} Qxd6 {[%emt 0:00:07]} 27. Nxc4 {[%emt 0:00:35]} Qxd3 {[%emt 0:01:29]} 28. Nxa5 {[%emt 0:01:38]} Qb5 {[%emt 0:00:17]} 29. Bc3 {[%emt 0:04:18]} Rd3 {[%emt 0:04:24]} 30. Qb2 {[%emt 0:03:43]} Qa4 {[%emt 0:03:57]} 31. Rc1 {[%emt 0:00:53]} c4 {[%emt 0:03:11]} 32. Qb4 {[%emt 0:00:58]} Qe8 {[%emt 0:02:42]} 33. Qb7 {[%emt 0:00:28]} Nd7 {[%emt 0:00:38]} 34. Qxa6 {[%emt 0:00:51]} Nc5 {[%emt 0:00:17]} 35. Qa7 {[%emt 0:00:08]} Rd7 {[%emt 0:02:08]} 36. Qb6 {[%emt 0:00:28]} Ne4 {[%emt 0:05:01]} 37. Rf3 {[%emt 0:00:49]} Rd5 {[%emt 0:01:50]} 38. Qb2 {[%emt 0:00:29]} Rb5 {[%emt 0:00:13]} 39. Qc2 {[%emt 0:00:00]} Qd8 {[%emt 0:00:00]} 40. Rd1 {[%emt 0:00:00]} Qc7 {[%emt 0:00:00]} 41. Rd4 {[%emt 0:13:49]} Rxa5 {[%emt 0:04:44]} 42. Bxa5 {[%emt 0:01:18]} Qxa5 {[%emt 0:00:55]} 43. Rxc4 {[%emt 0:00:07]} Qe1+ {[%emt 0:00:37]} 44. Kh2 {[%emt 0:00:21]} Rxc4 {[%emt 0:00:17]} 45. Qxc4 {[%emt 0:10:02]} Nd2 46. Qc8+ Kf7 {[%emt 0:00:38]} 47. Qb7+ {[%emt 0:01:15]} Kg8 48. Qc8+ Kf7 {[%emt 0:01:21]} 49. Qd7+ {[%emt 0:02:42]} Kf8 {[%emt 0:00:22]} 50. Qd8+ {[%emt 0:00:19]} Kf7 {[%emt 0:00:06]} 51. Qd7+ {[%emt 0:00:05]} 1/2-1/2

[Event "22nd ETCC Women 2019"]
[Site "Batumi"]
[Date "2019.10.25"]
[Round "2.12"]
[White "Muetsch, Annmarie"]
[Black "Tamrazyan, Gohar"]
[Result "1-0"]
[ECO "C06"]
[WhiteElo "2266"]
[BlackElo "1955"]
[Annotator "NA"]
[PlyCount "113"]
[EventDate "2019.10.24"]
[EventType "team-tourn"]
[EventCountry "GEO"]
[SourceTitle "playchess.com"]
[Source "ChessBase"]
[SourceQuality "1"]
[WhiteTeam "Germany"]
[BlackTeam "Switzerland"]
[WhiteTeamCountry "GER"]
[BlackTeamCountry "SUI"]
[TimeControl "40/5400+30:1800+30"]

1. e4 {[%emt 0:00:00]} e6 {[%emt 0:00:00]} 2. d4 {[%emt 0:00:00]} d5 {[%emt 0:00:00]} 3. Nd2 {[%emt 0:00:00]} Nf6 {[%emt 0:00:09]} 4. e5 {[%emt 0:00:00]} Nfd7 {[%emt 0:00:09]} 5. Bd3 {[%emt 0:00:00]} c5 {[%emt 0:00:18]} 6. c3 {[%emt 0:00:05]} Nc6 {[%emt 0:00:14]} 7. Ne2 {[%emt 0:00:06]} cxd4 {[%emt 0:00:28]} 8. cxd4 {[%emt 0:00:06]} f6 {[%emt 0:00:13]} 9. exf6 {[%emt 0:00:05]} Nxf6 {[%emt 0:00:06]} 10. O-O {[%emt 0:00:08]} Bd6 {[%emt 0:00:10]} 11. Nf3 {[%emt 0:00:07]} Qc7 {[%emt 0:00:49]} 12. h3 {[%emt 0:00:26]} O-O {[%emt 0:00:54]} 13. Be3 {[%emt 0:00:43]} Bd7 {[%emt 0:01:30]} 14. Re1 {[%emt 0:00:16]} Be8 {[%emt 0:02:41]} 15. Ng5 {[%emt 0:00:26]} Bf7 {[%emt 0:03:03]} 16. Rc1 {[%emt 0:05:40]} h6 {[%emt 0:10:50]} 17. Nxf7 {[%emt 0:00:36]} Qxf7 {[%emt 0:02:24]} 18. Bb1 {[%emt 0:06:19]} Rad8 {[%emt 0:22:34]} 19. a3 {[%emt 0:03:50]} e5 {[%emt 0:07:13]} 20. dxe5 {[%emt 0:01:09]} Bxe5 {[%emt 0:01:11]} 21. Nd4 {[%emt 0:07:02]} Bxd4 {[%emt 0:15:31]} 22. Bxd4 {[%emt 0:00:35]} Nxd4 {[%emt 0:03:35]} 23. Qxd4 {[%emt 0:00:10]} b6 {[%emt 0:01:03]} 24. Re3 {[%emt 0:12:34]} Rc8 {[%emt 0:04:41]} 25. Rd1 {[%emt 0:03:00]} Rc4 {[%emt 0:02:54]} 26. Qd3 {[%emt 0:01:51]} Rfc8 {[%emt 0:06:03]} 27. Qf5 {[%emt 0:10:58]} R8c5 {[%emt 0:07:50]} 28. Ree1 {[%emt 0:06:52]} Qc7 {[%emt 0:03:27]} 29. b4 {[%emt 0:06:34]} Rc6 {[%emt 0:01:14]} 30. Ba2 {[%emt 0:02:44]} Qf4 {[%emt 0:00:20]} 31. Qd3 {[%emt 0:08:48]} Rc2 {[%emt 0:00:42]} 32. Bxd5+ {[%emt 0:00:31]} Nxd5 {[%emt 0:00:32]} 33. Qxd5+ {[%emt 0:03:20]} Kh7 {[%emt 0:00:13]} 34. Qd3+ {[%emt 0:01:02]} Kg8 {[%emt 0:00:32]} 35. Re2 {[%emt 0:08:25]} Rxe2 {[%emt 0:01:42]} 36. Qxe2 {[%emt 0:00:09]} Rc3 {[%emt 0:01:26]} 37. Qa2+ {[%emt 0:04:04]} Qc4 {[%emt 0:00:03]} 38. Rd8+ {[%emt 0:02:02]} Kf7 {[%emt 0:01:13]} 39. Rd7+ {[%emt 0:01:30]} Kf6 {[%emt 0:00:33]} 40. Qxc4 {[%emt 0:00:00]} Rxc4 {[%emt 0:00:00]} 41. Rxa7 {[%emt 0:00:35]} b5 {[%emt 0:03:13]} 42. Ra5 {[%emt 0:03:34]} Rc3 {[%emt 0:00:21]} 43. Kf1 {[%emt 0:01:36]} Rd3 {[%emt 0:02:22]} 44. Ke2 {[%emt 0:00:42]} Rd5 {[%emt 0:00:06]} 45. Ra6+ {[%emt 0:01:02]} Kf5 {[%emt 0:01:37]} 46. Rc6 {[%emt 0:01:02]} Ke4 {[%emt 0:06:52]} 47. Rc7 {[%emt 0:05:53]} Rg5 {[%emt 0:02:14]} 48. g3 {[%emt 0:00:56]} Kd4 {[%emt 0:00:39]} 49. Rc6 {[%emt 0:01:22]} Rh5 {[%emt 0:03:56]} 50. h4 {[%emt 0:00:19]} Re5+ {[%emt 0:00:10]} 51. Kf3 {[%emt 0:00:55]} Rf5+ {[%emt 0:00:37]} 52. Kg2 {[%emt 0:00:29]} Kd3 {[%emt 0:01:14]} 53. Rc5 {[%emt 0:00:47]} g6 {[%emt 0:04:03]} 54. g4 {[%emt 0:00:14]} Rf4 {[%emt 0:00:10]} 55. Kg3 {[%emt 0:00:09]} Rc4 {[%emt 0:00:26]} 56. Rxb5 {[%emt 0:00:18]} Rc3 {[%emt 0:01:10]} 57. Rb6 {[%emt 0:00:37]} 1-0